Cogmind - Beta 13 *** ADVENTURER MODE // 2024.04.10 @ 13:02:47 Player: Plonker Result: Destroyed by D-53 Grenadier with Mini Grenade Launcher Performance ------------- Evolutions (0) 0 Regions Visited (2) 400 Robots Destroyed (13) 65 Value Destroyed (309) 309 Prototype IDs (2) 40 Alien Tech Used (0) 0 Bonus (0) 0 TOTAL SCORE: 814 Bonus ------- None Cogmind --------- Core Integrity 0/250 Matter 200/300 Energy 250/250 System Corruption 0% Temperature Cool (0) Movement Core (200) Ox3 Location -10/Mines Parts ------- > --- POWER (1) -------- Ion Engine > --- PROPULSION (2) --- (None) > --- UTILITY (2) ------ Heat Sink Small Storage Unit > --- WEAPON (2) ------- (None) > --- INVENTORY (8) ---- Compact Wheel Compact Wheel Signal Interpreter Peak State ------------ > --- POWER ------------ Light Ion Engine > --- PROPULSION ------- Wheel Compact Wheel > --- UTILITY ---------- Heat Sink Small Storage Unit > --- WEAPON ----------- EM Pulse Gun EM Pulse Gun > --- INVENTORY -------- Ion Engine [Rating: 7] Favorites ----------- Power Light Ion Engine Engine Light Ion Engine Propulsion Compact Wheel Wheel Compact Wheel Utility Small Storage Unit Device Heat Sink Storage Small Storage Unit Weapon EM Pulse Gun Energy Gun EM Pulse Gun Launcher Rocket Launcher Build | -11 -10 -10 ------- Run | Yrd Mat Min Slots Evolved . | . . . Power . | . . . Propulsion . | . . . Utility . | . . . Weapon . | . . . Parts Attached 10 | 6 3 1 Power 2 | 1 1 . Engine 2 | 1 1 . Core . | . . . Reactor . | . . . Propulsion 3 | 2 1 . Treads . | . . . Leg . | . . . Wheel 3 | 2 1 . Hover . | . . . Flight . | . . . Utility 2 | 1 1 . Device 1 | . 1 . Storage 1 | 1 . . Processor . | . . . Hackware . | . . . Protection . | . . . Artifact . | . . . Weapon 3 | 2 . 1 Energy Gun 2 | 2 . . Energy Cannon . | . . . Ballistic Gun . | . . . Ballistic Cannon . | . . . Launcher 1 | . . 1 Special Weapon . | . . . Impact Weapon . | . . . Slashing Weapon . | . . . Piercing Weapon . | . . . Special Melee Weapon . | . . . Unidentified Prototypes . | . . . Parts Lost 6 | . 2 4 Power 1 | . 1 . Propulsion 2 | . . 2 Utility . | . . . Weapon 3 | . 1 2 Highest Loss Streak 4 | . 1 4 To Critical Strikes . | . . . Average Slot Usage (%) 86 | . 89 71 Engine 12 | . 12 14 Wheel 26 | . 28 17 Device 10 | . 9 14 Storage 14 | . 14 14 Energy Gun 20 | . 23 3 Launcher 1 | . . 7 Naked Turns . | . . . Heaviest Build 13 | 12 13 13 Greatest Support 32 | 26 32 32 Greatest Overweight (x) 3 | . . 3 Average Overweight (x) . | . . . Largest Inventory Capacity 8 | 8 8 8 Average Capacity 7 | 6 8 8 Most Carried 5 | 5 5 4 Average Carried 3 | 1 3 3 Final Capacity 8 | 8 8 8 Final Carried 3 | 1 3 3 Class Distribution -------------------- 100% | Mutant Dominant Class ---------------- Mutant | -10/Materials Mutant | -10/Mines Resources | -11 -10 -10 ----------- Run | Yrd Mat Min Matter Collected 244 | 190 54 . Remotely . | . . . Salvage Created 393 | . 358 35 Parts 27 | . 23 4 Haulers Intercepted . | . . . Recyclers Shooed . | . . . Parts Field Recycled . | . . . Retrieved Matter . | . . . Parts Self-Destructed . | . . . Prevented . | . . . Kills | -11 -10 -10 ------- Run | Yrd Mat Min Combat Hostiles Destroyed 19 | . 9 10 Guns 8 | . 8 . AOE 11 | . 1 10 Classes Destroyed 4 | . 3 1 Watcher 2 | . 2 . Swarmer 5 | . 3 2 Grunt 6 | . 6 . Assembled 8 | . . 8 Best Kill Streak 10 | . 3 10 Combat Bots Only 10 | . 3 10 Max Kills in Single Turn 3 | . 1 3 Gunslinging . | . . . Exploded 3 | . 1 3 Melee . | . . . Uniques/NPCs Destroyed . | . . . Combat | -11 -10 -10 -------- Run | Yrd Mat Min Hostile Shots Fired 73 | . 49 24 Missed 24 | . 15 9 Damage Taken 637 | . 274 363 Core 255 | . 72 183 Absorbed by Shields . | . . . Ignored by Resistances 197 | . 88 109 Core Remaining (%) 100 | 100 . . Volleys Fired 31 | . 24 7 Largest 2 | . 2 1 Hottest 80 | . 80 33 Shots Fired 44 | . 37 7 Gun 37 | . 37 . Cannon . | . . . Launcher 7 | . . 7 Special . | . . . Kinetic . | . . . Thermal . | . . . Explosive 7 | . . 7 Electromagnetic 37 | . 37 . Robot Hit Streak 18 | . 11 18 Robot Miss Streak 2 | . 2 . Penetration Max . | . . . Secondary Targets 1 | . 1 . Max Gunslinging Chain 1 | . 1 . Shots Hit Robots 33 | . 26 7 Core Hits 37 | . 17 20 Critical Kills . | . . . Critical Parts Destroyed . | . . . Critical Strikes . | . . . Melee Attacks . | . . . Impact . | . . . Slashing . | . . . Piercing . | . . . Sneak Attacks . | . . . Combat Hostiles . | . . . Follow-up Attacks . | . . . Damage Inflicted 972 | . 450 522 Guns 361 | . 361 . Cannons . | . . . Explosions 610 | . 88 522 Melee . | . . . Ramming 1 | . 1 . Kinetic . | . . . Thermal 88 | . 88 . Explosive 522 | . . 522 Electromagnetic 361 | . 361 . Impact . | . . . Slashing . | . . . Piercing . | . . . Highest Corruption . | . . . Average Corruption . | . . . Corruption Purged . | . . . Corruption Blocked . | . . . Overload Shots . | . . . Overflow Damage 14 | . 4 10 Projectiles . | . . . Explosions 14 | . 4 10 Melee . | . . . Knockbacks . | . . . Impact . | . . . Kinetic . | . . . Secondary . | . . . Self-Inflicted Damage 63 | . 28 35 Shots 3 | . 1 2 Rammed 1 | . 1 . Targets Rammed 1 | . 1 . Kicked . | . . . Crushed . | . . . Highest Temperature 36 | . 36 . Average Temperature 17 | . 17 . Received Heat Transfer 114 | . 114 . Siege Activations . | . . . Robots Corrupted . | . . . Combat Hostiles . | . . . Parts Fried 2 | . 2 . Impact Corruptions . | . . . Robots Melted . | . . . Combat Hostiles . | . . . Parts Melted . | . . . Heat Transferred 150 | . 150 . Parts Sabotaged . | . . . Parts Stolen . | . . . Parts Stripped . | . . . Power Chain Reactions 2 | . 2 . Alert | -11 -10 -10 ------- Run | Yrd Mat Min Peak Influence 268 | . 268 161 Initial 88 | . . 88 Average 95 | . 114 98 Maximum Alert Level 1 | . 1 . Low Security (%) 79 | 100 71 100 Level 1 20 | . 28 . Level 2 . | . . . Level 3 . | . . . Level 4 . | . . . Level 5 . | . . . High Security . | . . . Max Security . | . . . Squads Dispatched 2 | . 2 . Investigation 2 | . 2 . Extermination . | . . . Reinforcement . | . . . Assault . | . . . Garrison . | . . . Intercept . | . . . Searches Triggered . | . . . Construction Impeded . | . . . Haulers Reinforced . | . . . Active Scanning Responses . | . . . Cargo Convoy Interrupts . | . . . Stealth | -11 -10 -10 --------- Run | Yrd Mat Min Distress Signals . | . . . Communications Jammed . | . . . Distress Signals . | . . . Times Spotted 31 | . 14 17 Peak Tracking Total 12 | . 8 12 Tactical Retreats 3 | . 2 1 Traps | -11 -10 -10 ------- Run | Yrd Mat Min Traps Triggered 1 | . 1 . Indirectly . | . . . Trap Hack Attempts . | . . . Triggered . | . . . Disarmed . | . . . Reprogrammed 4 | . 4 . Reused . | . . . Traps Extracted . | . . . Installed . | . . . Triggered . | . . . Machines | -11 -10 -10 ---------- Run | Yrd Mat Min Machines Disabled 1 | . 1 . Max in Single Turn 1 | . 1 . Machines Repaired . | . . . Machines Dismantled . | . . . Machines Sabotaged . | . . . Overloaded Fab Kills . | . . . Hacking | -11 -10 -10 --------- Run | Yrd Mat Min Machines Accessed 4 | . 4 . Terminals 4 | . 4 . Fabricators . | . . . Repair Stations . | . . . Recycling Units . | . . . Scanalyzers . | . . . Garrison Access . | . . . Total Hacks 12 | . 12 . Successful 5 | . 5 . Failed 7 | . 7 . Catastrophic . | . . . Database Lockouts . | . . . Manual 9 | . 9 . Terminals 12 | . 12 . Fabricators . | . . . Repair Stations . | . . . Recycling Units . | . . . Scanalyzers . | . . . Garrison Access . | . . . Terminal Hacks 2 | . 2 . Prototype ID Bank 1 | . 1 . Reprogram Traps 1 | . 1 . Fabricator Hacks . | . . . Repair Station Hacks . | . . . Recycling Unit Hacks . | . . . Scanalyzer . | . . . Garrison Access Hacks . | . . . Unauthorized Hacks 3 | . 3 . Terminals 3 | . 3 . Track 1 | . 1 . Botnet 2 | . 2 . Fabricators . | . . . Repair Stations . | . . . Recycling Units . | . . . Scanalyzers . | . . . Garrison Access . | . . . Data Cores Recovered . | . . . Used . | . . . Hacking Detections 4 | . 4 . Full Trace Events 1 | . 1 . Feedback Events . | . . . Feedback Blocked . | . . . Robot Schematics Acquired . | . . . Robots Built . | . . . Authchips . | . . . Time . | . . . Total Robot Build Rating . | . . . Part Schematics Acquired . | . . . Parts Built . | . . . Authchips . | . . . Time . | . . . Total Part Build Rating . | . . . Parts Repaired . | . . . Time . | . . . Parts Recycled . | . . . Recycled Matter . | . . . Retrieved Matter . | . . . Retrieved Components . | . . . Parts Scanalyzed . | . . . Part Schematics Acquired . | . . . Parts Damaged . | . . . Bothacking | -11 -10 -10 ------------ Run | Yrd Mat Min Used RIF Installer . | . . . Robots Hacked . | . . . Non-combat . | . . . Combat . | . . . Robot Hacks Applied . | . . . Relay Couplers Released . | . . . Fabnet Peak Effective % . | . . . Robots Rewired . | . . . Allies Hacked . | . . . Hacks Repelled . | . . . Allies | -11 -10 -10 -------- Run | Yrd Mat Min Total Allies . | . . . Largest Group . | . . . Highest-Rated Group . | . . . Highest-Rated Ally . | . . . Total Orders . | . . . Ally Attacks . | . . . Total Damage . | . . . Kills . | . . . Allies Corrupted . | . . . Allies Melted . | . . . Intel | -11 -10 -10 ------- Run | Yrd Mat Min Robot Analysis Total . | . . . Derelict Logs Recovered . | . . . Drone Launches . | . . . Drone Recoveries . | . . . Exploration | -11 -10 -10 ------------- Run | Yrd Mat Min Turns Passed 314 | 49 227 38 Spaces Moved 221 | 40 168 13 Core 3 | 2 . 1 Treads . | . . . Legs . | . . . Wheels 218 | 38 168 12 Hover . | . . . Flight . | . . . Fastest Speed 50 | 50 90 100 Average Speed 91 | 91 90 107 Slowest Speed 200 | 100 100 200 Overloaded Moves . | . . . Propulsion Burnouts . | . . . Robots Hopped . | . . . Cave-ins Triggered . | . . . Exploration Rate (%) 22 | 5 50 13 Regions Visited 2 Branch Regions 1 Pre-discovered Areas . | . . . Known Exits Taken . | . . . Unknown Exits Taken 2 | 1 1 . Scrap Searched . | . . . Spaces Dug . | . . . Terrain Destroyed 73 | . 9 64 Melee . | . . . Projectile . | . . . AOE 73 | . 9 64 Terrain Rammed . | . . . Walls Destroyed . | . . . Machines Disabled . | . . . Actions | -11 -10 -10 --------- Run | Yrd Mat Min Total 288 | 52 206 30 Wait 13 | . 5 8 Move 219 | 39 167 13 Hop . | . . . Pick Up 13 | 7 5 1 Fast Attach . | . . . Attach 9 | 6 2 1 Detach . | . . . Swap 1 | . 1 . Drop 1 | . 1 . Fire 31 | . 24 7 Melee . | . . . Ram 1 | . 1 . Kick . | . . . Crush . | . . . Escape Stasis . | . . . Rewire . | . . . Trap . | . . . Miscellaneous . | . . . Route ------- -11/Scrapyard -10/Materials -10/Mines History --------- Turn | Location | Event 36 | -11/Scrapyard | Discovered new exit (range 15) 50 | -11/Scrapyard | Entered Materials 269 | -10/Materials | Discovered new exit (range 6) 277 | -10/Materials | Entered Mines 281 | -10/Mines | Assembled infested the area 286 | -10/Mines | Assisted by a Guerilla fighting off Assembled 288 | -10/Mines | Received a Rocket Launcher from a helpful Derelict 296 | -10/Mines | Core integrity fell below 50% 314 | -10/Mines | Core integrity fell below 20% 315 | -10/Mines | Destroyed by D-53 Grenadier with Mini Grenade Launcher Last Messages --------------- 00296_ D0-OSU(h) destroyed. 00299_ Com. Wheel destroyed. 00299_ as-66545 destroyed. 00299_ Destroyed Asb. Hover Unit. 00299_ as-86950 destroyed. 00299_ Destroyed Asb. Hover Unit. 00301_ as-57748 destroyed. 00301_ as-40226 destroyed. 00301_ as-01456 destroyed. 00303_ as-27179 destroyed. 00303_ as-63053 destroyed. 00305_ as-70292 destroyed. 00307_ The unstable cave ceiling collapses. 00307_ Com. Wheel destroyed. 00307_ S-10 Pest destroyed. 00308_ C-30 ARC bursts open, deploying its payload. 00308_ D-53 Grenadier unfolds itself. 00312_ The unstable cave ceiling collapses. 00313_ Rocket Launcher destroyed. Map ----- +----------------------------------------------------+ | | | | | | | | | | | | | | | | | | | ????????????????????????????????????? | | ????????????????????????????????????? | | ????????????????????????????????????? | | ???????????????#####????????????????? | | ??????????????## ####?????????????? | | ?????????????## ##????????????? | | ?????##?????## #????????????? | | ?????# ???## #????????????? | | ?????# #?## #?????????????? | | ?????# ## ### ##?????????????? | | ?????# #??# ##?? #??????????? | | ?????# ### ### #??????????? | | ??????# # ##?????????? | | ???????# ????????? | | ????????# %% % % #????? | | ????????# ????????? | | ?????????# @ #??????????????? | | ?????????# #??????????????? | | ????????# ##??????????????? | | ????????# #??????????????? | | ????????## ####??????????????? | | ?????????## ##?????????????????? | | ?????????# #??????????????????? | | ????????? d ##??????????????????? | | ????????# d #???????????????????? | | ???????? % #???????????????????? | | ???????## s ???????????????????? | | ????????## [t ???????????????????? | | ?????????#$# % ??????????????????? | | ?????????# # #??????????????????? | | ?????????# ?## ###??????????????????? | | ?????????# ??? ?????????????????????? | | ?????????????? ?????????????????????? | | ????????????????????????????????????? | | ????????????????????????????????????? | | ????????????????????????????????????? | | ????????????????????????????????????? | | ????????????????????????????????????? | | ????????????????????????????????????? | | ????????????????????????????????????? | | ????????????????????????????????????? | +----------------------------------------------------+ Best States ------------- Heat Dissipation 35 Energy Generation 10 Energy Capacity 250 Matter Stores 287 Matter Capacity 300 Sight Range 16 Terrain Scan Density 10 Resistance: KI 20 Resistance: TH 20 Resistance: EX 20 Resistance: EM 20 Resistance: I 20 Resistance: S 20 Resistance: P 20 Evasion (%) 42 Offensive Hacking 10 Item Schematics ----------------- None Robot Schematics ------------------ None Fabricated ------------ Nothing Alien Tech Used ----------------- None Achievements -------------- None Challenges ------------ None Game ------ Seed NodeScatterTorch Manual? 0 Play Time 00:10:13 Cumulative 39.8 hours Start 2024.04.10 @ 12:53:50 End 2024.04.10 @ 13:02:47 Sessions 1 Manual Loads 0 Difficulty Adventurer Special Mode None Game No. 34 Rogue 0 Adventurer 34 Explorer 0 Win Type - Total 0 Types 0/0/0/0/0/0/0/0/0 Lore% 26 Gallery% 35 Achievement% 27 Wizard Run 0 Options --------- Layout 1 ASCII 0 Keyboard 0 Movement Numpad Keybinds 0 Fullscreen 2 Font 16/Tamsyn Map View 50x40 Zoom Use 0% Tactical HUD 1 Map Filters NONE Filters NONE Steam SD RUN: 43934a85-3343-4ade-adcb-bbd04b4005da